bitfinex-derivatives/quotes_ETHF0:USTF0_20250804
["timestamp","ask_amount","ask_price","bid_price","bid_amount"]
[1754292913456,1.0,3547.0,3546.9,6.83904]
[1754292913659,20.211,3547.0,3546.9,6.83904]
[1754292914366,26.0921,3547.0,3546.9,6.2752]
[1754292914758,26.0921,3547.0,3546.6,0.56387]
[1754292914958,5.8578,3546.7,3546.6,3.13927]
[1754292915159,25.0748,3546.7,3546.6,6.160172]
[1754292915555,25.0748,3546.7,3546.6,9.947472]
[1754292915967,25.0748,3546.7,3546.6,3.584772]
[1754292917164,25.0728,3546.7,3546.6,3.584772]
[1754292918163,24.1026,3546.7,3546.6,10.511352]
[1754292918467,8.65925,3546.9,3546.8,5.0257]
[1754292918768,5.45147,3546.7,3546.6,6.035072]
[1754292919063,25.63367,3546.7,3546.6,3.584772]
[1754292919265,25.0698,3546.7,3546.6,6.035072]
[1754292919561,25.0698,3546.7,3546.6,8.892772]
[1754292919769,25.0698,3546.7,3546.6,9.947472]
[1754292920469,25.0698,3546.7,3546.6,6.067172]
[1754292921467,25.0698,3546.7,3546.6,9.947472]
[1754292923558,25.8361495,3546.7,3546.6,7.121872]
[1754292923763,25.8361495,3546.7,3546.6,3.584772]
[1754292923963,27.98566797,3546.7,3546.6,3.584772]
[1754292924368,25.8361495,3546.7,3546.6,3.584772]
[1754292924668,25.8361495,3546.7,3546.6,6.035072]
[1754292924867,25.8361495,3546.7,3546.6,7.372072]
[1754292925671,25.8361495,3546.7,3546.6,8.892772]
[1754292926369,25.8361495,3546.7,3546.6,5.437472]
[1754292926771,29.0439495,3546.7,3546.6,4.546472]
[1754292926963,29.0439495,3546.7,3546.6,3.584772]
[1754292927975,29.0439495,3546.7,3546.6,7.555772]
[1754292928268,29.0439495,3546.7,3546.6,9.947472]
[1754292928670,29.0439495,3546.7,3546.6,5.105472]
[1754292928863,29.0439495,3546.7,3546.6,3.584772]
[1754292929370,29.0439495,3546.7,3546.6,4.546472]
[1754292929567,29.0439495,3546.7,3546.6,3.584772]
[1754292932272,29.0439495,3546.7,3546.0,4.6783]
[1754292932273,1.719,3546.1,3546.0,4.6783]
[1754292932466,26.7243,3546.1,3546.0,4.6783]
[1754292932667,27.28826,3546.1,3546.0,5.308]
[1754292932870,27.28826,3546.1,3546.0,6.3627]
[1754292933171,26.7243,3546.1,3546.0,6.3627]
[1754292933866,25.7541,3546.1,3546.0,6.3627]
[1754292934266,24.1398,3546.1,3546.0,6.3627]
[1754292934769,26.7329,3546.1,3546.0,6.3627]
[1754292935065,26.7329,3546.1,3546.0,0.891]
[1754292935267,26.7329,3546.1,3546.0,4.475772]
[1754292935770,27.4957622,3546.1,3546.0,3.584772]
[1754292937371,27.4957622,3546.1,3546.0,6.035072]
[1754292937769,27.4957622,3546.1,3546.0,3.584772]
[1754292938473,27.4957622,3546.1,3546.0,9.947472]
[1754292942172,3.9706622,3546.1,3546.0,9.947472]
[1754292942472,23.1826622,3546.1,3546.0,9.947472]
[1754292942664,24.9069622,3546.1,3546.0,5.105472]
[1754292942870,27.4947622,3546.1,3546.0,9.947472]
[1754292943269,26.7319,3546.1,3546.0,9.947472]
[1754292943475,3.9815,3546.8,3546.7,6.3627]
[1754292943675,24.00636739,3546.8,3546.7,6.3627]
[1754292944176,24.8207,3546.8,3546.7,6.3627]
[1754292944568,5.5577,3546.8,3546.7,6.3627]
[1754292944878,25.7694,3546.8,3546.7,6.3627]
[1754292945168,25.7694,3546.8,3546.7,9.947472]
[1754292945474,23.2435,3546.8,3546.7,9.947472]
[1754292945672,0.8593,3546.8,3546.7,9.947472]
[1754292945973,20.1193,3546.8,3546.7,9.947472]
[1754292946370,5.6642,3547.0,3546.9,3.8786]
[1754292946569,24.3397,3547.0,3546.9,6.3845]
[1754292947071,26.1921,3547.0,3546.9,6.3845]
[1754292947474,27.7683,3547.0,3546.9,6.3845]
[1754292947776,26.1921,3547.0,3546.9,6.3845]
[1754292948377,6.9331,3547.0,3546.9,6.3845]
[1754292948577,26.1921,3547.0,3546.9,6.3845]
[1754292950175,26.1921,3547.0,3546.9,9.969272]
[1754292950778,29.7846,3547.0,3546.9,3.584772]
[1754292950971,30.34842,3547.0,3546.9,3.584772]
[1754292951175,31.11004535,3547.0,3546.9,3.584772]
[1754292951879,31.25758271,3547.0,3546.9,3.584772]
[1754292952276,1.90916271,3547.0,3546.9,9.76003047]
[1754292952584,20.252,3547.0,3546.9,12.68263047]
[1754292953789,20.266,3547.0,3546.9,12.68263047]
[1754292954084,20.266,3547.0,3546.9,10.533112]
[1754292954382,22.79,3547.0,3546.9,10.533112]
[1754292954585,26.5818,3547.0,3546.9,10.533112]
[1754292956584,26.5818,3547.0,3546.9,9.222312]
[1754292956780,25.6331,3547.0,3546.9,10.533112]
[1754292957285,25.6321,3547.0,3546.9,10.533112]
[1754292957483,20.261,3547.0,3546.9,10.533112]
[1754292958183,17.9133,3547.0,3546.9,10.533112]
[1754292958389,16.5044,3547.0,3546.9,10.533112]
[1754292958790,43.8228,3547.4,3547.3,2.20487]
[1754292958991,43.8228,3547.4,3547.3,4.71077]
[1754292959290,63.1048,3547.4,3547.3,4.71077]
[1754292959588,3.99486325,3548.2,3547.3,4.71077]
[1754292959589,1.52029152,3548.5,3547.3,3.2078]
[1754292959783,3.50708384,3549.6,3549.3,0.5854]
[1754292959784,1.4564,3549.4,3549.3,0.5854]
[1754292959984,7.22363824,3549.4,3549.3,4.7689]
[1754292960186,6.46503459,3549.4,3549.3,4.3936]
[1754292960484,6.46503459,3549.4,3549.3,7.377972]
[1754292960687,25.88803459,3549.4,3549.3,7.377972]
[1754292960884,0.56297,3552.4,3549.4,1.40859]
[1754292961084,0.56297,3552.4,3549.3,9.03109047]
[1754292961085,2.524,3551.3,3551.2,3.2078]
[1754292961284,1.4564,3550.6,3550.5,3.2078]
[1754292961494,6.3178,3550.6,3550.5,3.77106]
[1754292961691,2.524,3550.7,3550.5,3.2078]
[1754292961887,6.3178,3550.6,3550.5,3.2078]
[1754292962082,3.7938,3550.5,3550.1,3.2078]
[1754292962390,3.7938,3550.3,3550.1,3.2078]
[1754292962692,3.7938,3550.2,3550.1,3.2078]
[1754292965194,3.7938,3550.2,3550.1,6.792572]
[1754292966293,6.3178,3550.2,3550.1,6.792572]
[1754292969394,6.88111,3550.2,3550.1,6.792572]
[1754292970205,6.3178,3550.2,3550.1,6.792572]
[1754292970991,25.9068,3550.2,3550.1,7.03688115]
[1754292971193,24.6379,3550.2,3550.1,6.792572]
[1754292971786,20.5377,3550.2,3550.1,6.792572]
[1754292972199,3.08801,3551.5,3550.8,0.5632]
[1754292972395,2.524,3551.3,3551.2,3.2078]
[1754292972595,6.3178,3551.3,3551.2,3.2078]
[1754292973492,24.6509,3551.3,3551.2,3.2078]
[1754292973698,25.9198,3551.3,3551.2,3.2078]
[1754292973898,25.9168,3551.3,3551.2,3.2078]
[1754292974094,1.5478,3551.3,3551.2,3.2078]
[1754292974293,26.0877,3551.3,3551.2,3.2078]
[1754292974897,26.0877,3551.3,3551.2,3.4459]
[1754292975295,22.178,3551.3,3551.2,7.030672]
[1754292975489,20.5737,3551.3,3551.2,7.030672]
[1754292976096,20.5717,3551.3,3551.2,7.030672]
[1754292976292,20.5707,3551.3,3551.2,7.030672]
[1754292976902,24.757,3551.3,3551.2,7.030672]
[1754292977201,26.1087,3551.3,3551.2,7.030672]
[1754292978899,26.1087,3551.3,3551.2,6.792572]
[1754292979099,26.67184,3551.3,3551.2,6.792572]
[1754292979294,26.67184,3551.3,3551.2,4.371372]
[1754292979501,26.67184,3551.3,3551.2,3.584772]
[1754292979701,7.01122,3550.8,3550.7,3.2078]
[1754292979901,26.62122,3550.8,3550.7,3.2078]
[1754292982201,26.62122,3550.8,3550.7,4.0811]
[1754292982401,26.62122,3550.8,3550.7,8.5978]
[1754292982602,7.01122,3550.8,3550.7,8.5978]
[1754292982904,7.01122,3550.8,3550.7,10.712602]
[1754292982905,19.602,3550.8,3550.7,10.712602]
[1754292983105,19.602,3550.8,3550.7,13.631302]
[1754292984404,19.602,3550.8,3550.7,13.87870901]
[1754292985209,1.6549,3551.0,3550.9,3.0467]
[1754292985408,19.601,3551.0,3550.9,3.0345]
[1754292985798,19.601,3551.0,3550.9,5.9532]
[1754292986003,19.601,3551.0,3550.9,6.8387]
[1754292986300,19.601,3551.0,3550.9,7.08640407]
[1754292986502,21.07419,3551.0,3550.9,6.52320407]
[1754292986703,25.26049,3551.0,3550.9,5.63770407]
[1754292986903,26.61219,3551.0,3550.9,5.63770407]
[1754292987115,26.049,3551.0,3550.9,5.63770407]
[1754292987718,24.6973,3551.0,3550.9,6.52320407]
[1754292988617,26.049,3551.0,3550.9,5.39]
[1754292988916,26.74905485,3551.0,3550.9,3.9227]
[1754292989109,26.74905485,3551.0,3550.9,2.9407]
[1754292990216,26.74905485,3551.0,3550.9,6.525472]
[1754292990616,26.74905485,3551.0,3550.9,6.77386042]
[1754292990820,26.74905485,3551.0,3550.9,6.525472]
[1754292991011,26.74905485,3551.0,3550.9,7.507472]
[1754292991408,26.74905485,3551.0,3550.9,4.566772]
[1754292991611,26.74905485,3551.0,3550.9,3.584772]
[1754292993722,26.74905485,3551.0,3550.9,5.32261463]
[1754292993918,26.75080645,3551.0,3550.9,7.75601463]
[1754292994320,20.26080645,3551.0,3550.9,10.67201463]
[1754292994520,26.70880645,3551.0,3550.9,7.75601463]
[1754292994926,26.70880645,3551.0,3550.9,9.22331463]
[1754292995225,25.35710645,3551.0,3550.9,9.22331463]
[1754292995418,22.82570645,3551.0,3550.9,10.10881463]
[1754292996019,24.43000645,3551.0,3550.9,10.10881463]
[1754292996927,24.43000645,3551.0,3550.9,10.10923516]
[1754292997721,20.25880645,3551.0,3550.9,10.10923516]
[1754292998619,21.16880645,3551.0,3550.9,10.10923516]
[1754292998820,21.16880645,3551.0,3550.9,7.75643516]
[1754292998821,26.70680645,3551.0,3550.9,7.75643516]
[1754292999831,26.70680645,3551.0,3550.9,6.15843516]
[1754293000128,26.70680645,3551.0,3550.9,3.83373516]
[1754293001035,27.71650379,3551.0,3550.9,3.83373516]
[1754293002228,26.70680645,3551.0,3550.9,6.77443516]
[1754293002429,26.70680645,3551.0,3550.9,7.75643516]
[1754293003526,26.70680645,3551.0,3550.9,4.70703516]
[1754293003928,27.71650379,3551.0,3550.9,3.83373516]
[1754293006527,1.20608,3550.4,3550.3,3.2078]
[1754293006730,29.50404613,3550.4,3550.3,3.2078]
[1754293007230,29.50404613,3550.4,3550.3,5.4113]
[1754293007426,29.50404613,3550.4,3550.3,6.024]
[1754293007728,22.90379568,3550.4,3550.3,9.3695]
[1754293008327,26.80539568,3550.4,3550.3,9.3695]
[1754293008522,26.80539568,3550.4,3550.3,8.4566]
[1754293009632,26.80539568,3550.4,3550.3,12.041372]
[1754293009831,26.80539568,3550.4,3550.3,12.954272]
[1754293009832,25.40669568,3550.4,3550.3,12.954272]
[1754293010032,24.48249568,3550.4,3550.3,12.954272]
[1754293010336,22.90379568,3550.4,3550.3,12.954272]
[1754293010636,26.80539568,3550.4,3550.3,12.954272]
[1754293011032,26.80539568,3550.4,3550.3,12.041372]
[1754293011232,26.80539568,3550.4,3550.3,8.291372]
[1754293011427,26.80539568,3550.4,3550.3,3.564972]
[1754293011628,28.51319568,3550.4,3550.3,1.949372]
[1754293011827,29.15599568,3550.4,3550.3,1.949372]
[1754293012032,27.36559568,3550.4,3550.3,8.111072]
[1754293012240,25.96689568,3550.4,3550.3,8.111072]
[1754293012438,24.08209568,3550.4,3550.3,8.111072]
[1754293012839,24.64537568,3550.4,3550.3,8.111072]
[1754293013040,20.22049568,3550.4,3550.3,8.674372]
[1754293013238,19.517,3550.4,3550.3,8.111072]
[1754293014432,19.517,3550.4,3550.3,10.24813168]
[1754293014638,4.1684,3550.8,3550.7,6.1617]
[1754293014837,22.7288,3550.8,3550.7,6.1617]
[1754293015234,22.7288,3550.8,3550.7,8.111072]
[1754293015443,3.2078,3550.8,3550.7,8.111072]
[1754293016039,19.519,3550.9,3550.8,2.15432]
[1754293016247,19.519,3550.9,3550.8,6.72492]
[1754293016540,2.5276,3551.5,3551.4,6.72482]
[1754293016742,22.75053132,3551.5,3551.4,9.93262]
[1754293017040,0.70293132,3551.5,3551.4,9.93262]
[1754293017234,0.7565,3552.5,3551.4,9.93262]
[1754293017235,7.1341,3552.4,3552.3,3.9314]
[1754293017435,7.83673902,3552.4,3552.3,6.1617]
[1754293017635,27.37073902,3552.4,3552.3,6.1617]
[1754293017846,5.47743902,3552.4,3552.3,6.1617]
[1754293018044,25.01243902,3552.4,3552.3,6.72468]
[1754293018341,22.0596,3552.4,3552.3,6.1617]
[1754293018546,23.4583,3552.4,3552.3,6.1617]
[1754293018735,24.6409,3552.4,3552.3,6.1617]
[1754293018938,23.4583,3552.4,3552.3,6.1617]
[1754293019247,22.0596,3552.4,3552.3,6.1617]
[1754293019438,24.5272,3552.4,3552.3,5.2488]
[1754293019639,2.6359,3552.1,3552.0,3.2078]
[1754293019841,25.3177,3552.1,3552.0,8.4566]
[1754293020350,25.3177,3552.1,3552.0,7.589772]
[1754293020644,25.3177,3552.1,3552.0,5.157172]
[1754293021648,25.3177,3552.1,3552.0,7.589772]
[1754293021944,24.5612,3552.1,3552.0,8.202472]
[1754293022143,25.3177,3552.1,3552.0,7.589772]
[1754293022542,6.31471,3552.1,3552.0,1.949372]
[1754293022843,25.87171,3552.1,3552.0,1.949372]
[1754293025040,25.87171,3552.1,3552.0,0.496972]
[1754293025445,26.57274995,3552.1,3552.0,0.496972]
[1754293029051,26.57274995,3552.1,3552.0,1.475372]
[1754293029251,26.57274995,3552.1,3552.0,0.496972]
[1754293031757,26.57274995,3552.1,3552.0,2e-06]
[1754293032548,26.57274995,3552.1,3552.0,2.432602]
[1754293032756,67.12074995,3552.1,3552.0,3.931402]
[1754293033055,67.12074995,3552.1,3552.0,5.248802]
[1754293033249,63.69334995,3552.1,3552.0,6.161702]
[1754293033454,62.99631,3552.1,3552.0,6.161702]
[1754293033955,63.69723222,3552.1,3552.0,6.161702]
[1754293034253,61.33793222,3552.1,3552.0,6.161702]
[1754293034454,62.26543222,3552.1,3552.0,6.161702]
[1754293034650,63.62493222,3552.1,3552.0,6.161702]
[1754293034847,64.38313222,3552.1,3552.0,5.248802]
[1754293035051,61.33793222,3552.1,3552.0,2e-06]
[1754293035357,41.81193222,3552.1,3552.0,2e-06]
[1754293035656,64.37713222,3552.1,3552.0,2e-06]
[1754293038855,64.37713222,3552.1,3552.0,1.456902]
[1754293039558,61.33193222,3552.1,3552.0,2e-06]
[1754293040657,64.37713222,3552.1,3552.0,2e-06]
[1754293041358,65.38960838,3552.1,3552.0,2e-06]
[1754293041859,64.37713222,3552.1,3552.0,2e-06]
[1754293042654,42.73943222,3552.1,3552.0,2e-06]
[1754293042860,64.35713222,3552.1,3552.0,5.460802]
[1754293043656,42.73943222,3552.1,3552.0,5.460802]
[1754293043862,60.74292222,3552.1,3552.0,6.362302]
[1754293044258,60.74192222,3552.1,3552.0,6.362302]
[1754293044651,60.74792222,3552.1,3552.0,6.362302]
[1754293045763,60.74392222,3552.1,3552.0,6.362302]
[1754293046360,50.77322222,3552.1,3552.0,6.362302]
[1754293046564,50.0723,3552.1,3552.0,6.362302]
[1754293047262,50.0673,3552.1,3552.0,6.362302]
[1754293048160,30.5773,3552.1,3552.0,6.362302]
[1754293048364,0.9275,3552.7,3552.0,6.362302]
[1754293048365,0.9275,3552.7,3552.6,2.47853]
[1754293048567,21.10707591,3552.7,3552.6,2.47853]
[1754293048766,21.10707591,3552.7,3552.6,1.9156]
[1754293050168,21.10707591,3552.7,3552.6,1.915602]
[1754293050563,0.69557591,3552.7,3552.6,1.915602]
[1754293050762,19.481,3552.7,3552.6,1.915602]
[1754293050964,20.17657591,3552.7,3552.6,1.915602]
[1754293051165,25.8019,3552.7,3552.6,1.915602]
[1754293051368,26.4969986,3552.7,3552.6,1.915602]
[1754293052164,1.0,3553.0,3552.9,0.56289]
[1754293052365,2.5033,3552.7,3552.6,1.059102]
[1754293052569,25.8079,3552.7,3552.6,2e-06]
[1754293052762,21.9903,3552.7,3552.6,2e-06]
[1754293052966,21.9903,3552.7,3552.6,1.059102]
[1754293053165,21.9903,3552.7,3552.6,1.915602]
[1754293053374,25.8079,3552.7,3552.6,1.915602]
[1754293053779,22.55322,3552.7,3552.6,2e-06]
[1754293053966,21.9903,3552.7,3552.6,2e-06]
[1754293054168,22.68490465,3552.7,3552.6,2e-06]
[1754293054568,21.9903,3552.7,3552.6,2e-06]
[1754293056669,22.68473548,3552.7,3552.6,2e-06]
[1754293058172,22.68473548,3552.7,3551.7,0.8565]
[1754293058173,3.8628,3551.8,3551.7,3.2078]
[1754293058375,25.8169,3551.8,3551.7,3.2078]
[1754293058578,4.7903,3551.3,3551.2,5.1234]
[1754293058873,25.8189,3551.3,3551.2,5.1234]
[1754293059171,25.8189,3551.3,3551.2,3.2078]
[1754293059370,2.5033,3551.0,3550.9,1.9156]
[1754293059676,25.8189,3551.0,3550.9,1.9156]
[1754293060575,22.9288,3551.0,3550.9,1.9156]
[1754293061178,22.9288,3551.0,3550.9,5.500372]
[1754293061478,20.4255,3551.0,3550.9,5.500372]
[1754293061866,19.498,3551.0,3550.9,5.500372]
[1754293062179,0.9275,3551.5,3551.4,2.47872]
[1754293062374,20.4165,3551.5,3551.4,2.47872]
[1754293063878,20.4165,3551.5,3551.4,2.48322]
[1754293064775,41.4481,3551.9,3551.8,1.849]
[1754293065076,0.9081,3552.3,3552.2,0.9878]
[1754293065272,4.1074,3552.4,3552.3,0.8624]
[1754293065475,25.37783181,3552.4,3552.3,1.849]
[1754293065780,26.69443181,3552.4,3552.3,1.849]
[1754293067473,26.69443181,3552.4,3552.3,0.9911]
[1754293068980,22.85723181,3552.4,3552.1,3.209]
[1754293069277,6.4931,3552.2,3552.1,4.197]
[1754293069575,6.4931,3552.2,3552.1,5.0568]
[1754293070182,6.4931,3552.2,3552.1,8.641572]
[1754293070884,25.9871,3552.2,3552.1,8.641572]
[1754293072275,25.9781,3552.2,3552.1,8.641572]
[1754293072878,25.9781,3552.2,3552.1,6.792572]
[1754293074781,28.11290613,3552.2,3552.1,6.792572]
[1754293075183,28.67590613,3552.2,3552.1,6.792572]
[1754293075381,28.11290613,3552.2,3552.1,6.792572]
[1754293076582,28.11290613,3552.2,3552.1,8.639572]
[1754293076785,28.11290613,3552.2,3552.1,8.641372]
[1754293079676,28.11290613,3552.2,3552.1,7.780572]
[1754293079882,28.11290613,3552.2,3552.1,6.792572]
[1754293082482,2.6559,3551.6,3551.5,0.0011]
[1754293082682,25.9381,3551.6,3551.5,1.5544]
[1754293083278,25.9381,3551.6,3551.5,2.541]
[1754293083685,25.9381,3551.6,3551.5,3.3989]
[1754293084185,6.4931,3551.3,3551.2,6.2079]
[1754293084383,25.9401,3551.3,3551.2,6.2079]
[1754293084976,25.9401,3551.3,3551.2,3.2078]
[1754293085582,25.9401,3551.3,3551.2,6.792572]
[1754293086687,25.9401,3551.3,3551.2,3.584772]
[1754293087389,26.63061228,3551.3,3551.2,3.584772]
[1754293087984,6.4931,3550.5,3550.4,4.8446]
[1754293088185,25.9381,3550.5,3550.4,4.8446]
[1754293089188,25.9381,3550.5,3550.4,5.7488]
[1754293089382,25.9391,3550.5,3550.4,5.7488]
[1754293089689,8.7928,3551.0,3550.9,4.8446]
[1754293089883,28.2358,3551.0,3550.9,4.8446]
[1754293090082,6.4931,3551.0,3550.9,4.8446]
[1754293090384,6.4931,3551.4,3551.3,5.7488]
[1754293090589,25.9351,3551.4,3551.3,5.7488]
[1754293092184,6.4931,3551.4,3551.3,5.7488]
[1754293092386,25.9381,3551.4,3551.3,5.7488]
[1754293092887,5.1765,3551.4,3551.3,5.7488]
[1754293093185,24.6145,3551.4,3551.3,5.7488]
[1754293093687,25.9311,3551.4,3551.3,5.7488]
[1754293094689,25.9311,3551.4,3551.3,4.8446]
[1754293094889,25.9311,3551.4,3551.3,3.9867]
[1754293095191,25.9311,3551.4,3551.3,7.571472]
[1754293096185,25.9311,3551.4,3551.3,8.425472]
[1754293098097,24.6145,3551.4,3551.3,9.314872]
[1754293098594,25.9238,3551.4,3551.3,8.425472]
[1754293099190,25.9218,3551.4,3551.3,8.425472]
[1754293100996,25.9218,3551.4,3551.3,9.314872]
[1754293101198,25.9218,3551.4,3551.3,8.425472]
[1754293102600,25.9218,3551.4,3551.3,7.571472]
[1754293103099,6.5038,3551.4,3551.3,7.571472]
[1754293103399,25.9078,3551.4,3551.3,7.571472]
[1754293103802,6.5038,3551.4,3551.3,7.571472]
[1754293103994,25.9068,3551.4,3551.3,7.571472]
[1754293104496,25.9068,3551.4,3551.3,8.425472]
[1754293104693,25.9068,3551.4,3551.3,5.974272]
[1754293104898,28.04160613,3551.4,3551.3,3.584772]
[1754293105098,31.93951759,3551.4,3551.3,3.584772]
[1754293105298,6.3292,3550.8,3550.7,3.2078]
[1754293105495,27.86400613,3550.8,3550.7,3.2078]
[1754293106702,6.89243,3550.7,3550.6,0.9671]
[1754293106901,3.7746,3550.6,3550.4,1.3083]
[1754293107102,25.7272,3550.5,3550.4,2.8683]
[1754293107503,6.3292,3550.5,3550.4,2.8683]
[1754293107800,25.7272,3550.5,3550.4,3.8526]
[1754293108001,25.7272,3550.5,3550.4,4.7066]
[1754293108399,25.7272,3550.5,3550.4,8.291372]
[1754293109003,25.7272,3550.5,3550.4,7.437372]
[1754293109604,25.7272,3550.5,3550.4,8.291372]
[1754293110508,6.3292,3550.5,3550.4,9.180772]
[1754293110700,3.7746,3551.1,3550.9,2.1623]
[1754293111006,1.576,3551.2,3551.1,5.596]
[1754293111314,20.0875005,3551.2,3551.1,6.15917]
[1754293111503,0.6955005,3551.2,3551.1,5.596]
[1754293111804,0.6955005,3551.3,3551.1,4.7066]
[1754293112105,0.13198107,3551.2,3551.1,2.5443]
[1754293112310,0.6955005,3551.3,3551.2,3.10746]
[1754293112607,21.0283005,3551.3,3551.2,5.596]
[1754293113006,20.3318,3551.3,3551.2,5.596]
[1754293113208,21.02787594,3551.3,3551.2,5.596]
[1754293113510,20.3298,3551.3,3551.2,5.596]
[1754293114309,4.1516,3551.4,3551.3,6.15914]
[1754293114504,22.5918,3551.4,3551.3,6.15914]
[1754293114804,40.542,3551.5,3551.4,2.1977]
[1754293115009,59.926,3551.5,3551.4,5.596]
[1754293115208,59.926,3551.5,3551.4,9.180772]
[1754293115598,62.3733,3551.5,3551.4,9.180772]
[1754293116002,62.3723,3551.5,3551.4,9.180772]
[1754293116609,40.542,3551.5,3551.4,9.180772]
[1754293116813,59.924,3551.5,3551.4,9.180772]
[1754293117006,0.9438,3551.5,3551.4,9.180772]
[1754293117207,4.0581,3551.8,3551.7,6.15908]
[1754293117407,23.4361,3551.8,3551.7,9.36688]
[1754293117809,24.3799,3551.8,3551.7,9.36688]
[1754293118005,25.7072,3551.8,3551.7,5.596]
[1754293118205,25.7072,3551.8,3551.7,4.7066]
[1754293118916,6.3292,3551.5,3551.4,5.860172]
[1754293119219,25.7072,3551.5,3551.4,5.860172]
[1754293119917,25.7042,3551.5,3551.4,5.860172]
[1754293120812,27.83900613,3551.5,3551.4,3.584772]
[1754293121014,27.97094592,3551.5,3551.4,3.584772]
[1754293121310,25.83613979,3551.5,3551.4,3.584772]
[1754293121507,27.97094592,3551.5,3551.4,3.584772]
[1754293121711,28.66677938,3551.5,3551.4,3.584772]
[1754293123217,3.8819,3550.9,3550.8,3.2078]
[1754293123419,27.83000613,3550.9,3550.8,3.2078]
[1754293123626,28.39320613,3550.9,3550.8,3.2078]
[1754293123820,27.83000613,3550.9,3550.6,0.56324]
[1754293124020,6.5317,3550.8,3550.7,2.9774]
[1754293124720,3.24173,3550.8,3550.4,3.2078]
[1754293124917,8.66650613,3550.6,3550.5,2.382]
[1754293125220,8.66650613,3550.6,3550.5,0.9324]
[1754293126525,1.713,3550.1,3550.0,4.7356]
[1754293126722,28.03250613,3550.1,3550.0,0.9324]
[1754293126922,28.03250613,3550.1,3550.0,2.382]
[1754293127223,28.03250613,3550.1,3550.0,2.9774]
[1754293127628,2.6785,3549.7,3549.6,3.1091]
[1754293127815,3.8532,3550.0,3549.6,3.1091]
[1754293127816,3.8532,3550.0,3549.9,0.56336]
[1754293128016,24.9322,3550.0,3549.9,7.04556]
[1754293128318,6.5317,3550.0,3549.9,7.04556]
[1754293128524,25.8977,3550.0,3549.9,6.4822]
[1754293128923,25.8967,3550.0,3549.9,6.4822]
[1754293129126,25.8947,3550.0,3549.9,6.4822]
[1754293129328,6.5317,3550.0,3549.9,6.4822]
[1754293129721,25.8937,3550.0,3549.9,6.4822]
[1754293132821,25.8897,3550.0,3549.9,6.4822]
[1754293134326,25.8897,3550.0,3549.9,5.565]
[1754293134827,6.5317,3550.0,3549.9,5.565]
[1754293135023,25.8807,3550.0,3549.9,5.565]
[1754293136323,3.8532,3549.9,3549.5,3.2078]
[1754293136630,1.40821,3550.4,3549.5,5.7535]
[1754293136631,7.09511,3549.6,3549.5,5.7535]
[1754293136924,7.09511,3549.6,3549.5,9.69]
[1754293136925,2.6638,3549.6,3549.5,9.69]
[1754293137126,19.346,3549.6,3549.5,9.69]
[1754293137724,5.5662,3549.9,3549.8,6.4822]
[1754293137928,24.9182,3549.9,3549.8,6.4822]
[1754293138126,6.44961,3550.3,3550.2,2.5457]
[1754293138320,25.80161,3550.3,3550.2,4.9125]
[1754293138522,25.80161,3550.3,3550.2,6.4822]
[1754293138724,29.65481,3550.3,3550.2,6.4822]
[1754293138924,9.7395,3550.3,3550.2,6.4822]
[1754293139230,3.2078,3550.3,3550.2,6.4822]
[1754293139418,40.552,3550.5,3550.4,2.5457]
[1754293139625,59.909,3550.5,3550.4,6.4822]
[1754293140026,41.436,3550.5,3550.4,6.4822]
[1754293140227,62.388,3550.5,3550.4,6.4822]
[1754293140428,65.89700613,3550.5,3550.4,5.565]
[1754293140628,65.89700613,3550.5,3550.4,3.9953]
[1754293141227,65.89700613,3550.5,3550.4,5.565]
[1754293141429,65.89700613,3550.5,3550.4,6.4822]
[1754293141731,64.30200613,3550.5,3550.4,6.4822]
[1754293141930,65.89700613,3550.5,3550.4,6.4822]
[1754293142429,65.89900613,3550.5,3550.4,6.4822]
[1754293142621,65.89900613,3550.5,3550.4,5.565]
[1754293144230,65.89900613,3550.5,3550.4,3.52]
[1754293144435,6.5317,3550.2,3550.1,10.25332]
[1754293144636,25.8867,3550.2,3550.1,10.25332]
[1754293145330,28.02150613,3550.2,3550.1,4.1402]
[1754293145530,28.02150613,3550.2,3549.9,3.0193]
[1754293145736,2.6785,3550.0,3549.9,3.9517]
[1754293145936,25.8787,3550.0,3549.9,5.565]
[1754293146327,23.6205,3550.0,3549.9,2.382]
[1754293146537,23.6205,3550.0,3549.9,2.9774]
[1754293146933,25.8787,3550.0,3549.9,2.9774]
[1754293147339,25.8787,3550.0,3549.9,5.565]
[1754293149033,22.0255,3550.0,3549.7,3.77118]
[1754293149235,2.6785,3549.8,3549.7,9.33618]
[1754293149439,25.8717,3549.8,3549.7,9.33618]
[1754293149740,25.8717,3549.8,3549.7,10.25338]
[1754293150141,25.8717,3549.8,3549.7,4.1402]
[1754293150641,25.8717,3549.8,3549.7,8.7728]
[1754293151036,25.8717,3549.8,3549.7,7.2031]
[1754293152734,6.5317,3549.8,3549.7,7.2031]
[1754293152939,25.8687,3549.8,3549.7,9.69]
[1754293154239,0.24889949,3550.2,3549.7,7.1443]
[1754293154441,8.52880613,3549.9,3549.8,0.56337]
[1754293154641,27.86280613,3549.9,3549.8,0.56337]
[1754293156144,26.42465821,3549.9,3549.8,2.06927]
[1754293156345,26.42465821,3549.9,3549.8,5.97897]
[1754293157438,21.9015,3549.9,3549.8,6.90577]
[1754293157644,23.3864,3549.9,3549.8,6.90577]
[1754293158045,25.733,3549.9,3549.8,6.90577]
[1754293158649,25.733,3549.9,3549.7,3.2078]
[1754293158849,25.733,3549.9,3549.4,2.841]
[1754293158850,6.394,3549.5,3549.4,2.841]
[1754293159042,27.86880613,3549.5,3549.4,6.3424]